bitfinex/quotes_SOLUSD_20220227
["timestamp","ask_amount","ask_price","bid_price","bid_amount"]
[1645963494989,43.69593118,91.309,91.24,16.4396]
[1645963495188,43.69593118,91.309,91.241,2.5201671]
[1645963497193,2.74678921,91.308,91.241,2.5201671]
[1645963497392,43.69593118,91.309,91.241,2.5201671]
[1645963497594,43.69593118,91.309,91.241,2.30787451]
[1645963501596,2.74678921,91.308,91.229,3.06501638]
[1645963502397,112.94678921,91.308,91.229,3.06501638]
[1645963502597,138.28931844,91.308,91.222,2.57328026]
[1645963502796,2.74678921,91.307,91.222,2.57328026]
[1645963503397,1.67791142,91.305,91.202,2.39860851]
[1645963503798,110.2,91.303,91.202,2.39860851]
[1645963503997,110.2,91.299,91.18,16.4505]
[1645963504297,110.2,91.297,91.181,2.56087568]
[1645963504499,110.2,91.293,91.181,2.56087568]
[1645963504902,4.384,91.292,91.181,2.56087568]
[1645963505099,110.2,91.291,91.181,2.56087568]
[1645963505299,4.384,91.29,91.181,2.56087568]
[1645963505499,110.2,91.279,91.181,2.56087568]
[1645963505700,110.2,91.277,91.181,2.56087568]
[1645963506401,2.74678921,91.276,91.161,3.01111814]
[1645963506600,114.585,91.275,91.161,3.01111814]
[1645963507000,2.74678921,91.274,91.161,3.01111814]
[1645963507199,4.385,91.273,91.161,3.01111814]
[1645963507599,16.4549,91.27,91.161,3.01111814]
[1645963508300,110.2,91.269,91.161,3.01111814]
[1645963508499,112.94678921,91.269,91.161,3.01111814]
[1645963508702,2.74678921,91.268,91.161,3.01111814]
[1645963511203,2.74678921,91.268,91.17,16.4522]
[1645963511204,16.2161,91.268,91.17,16.4522]
[1645963511401,18.14904617,91.29,91.171,2.36439654]
[1645963511605,4.384,91.289,91.171,2.36439654]
[1645963511801,16.4515,91.29,91.171,2.36439654]
[1645963512002,16.4515,91.29,91.161,2.74678921]
[1645963512201,16.4515,91.29,91.164,2.58530412]
[1645963512401,16.4515,91.29,91.166,110.2]
[1645963512601,16.4515,91.29,91.168,2.96873571]
[1645963512801,16.4515,91.29,91.169,6.0]
[1645963513302,16.4515,91.29,91.171,2.73990002]
[1645963513502,16.4515,91.29,91.18,16.4505]
[1645963513705,16.4515,91.29,91.181,25.45611696]
[1645963513902,16.4515,91.29,91.182,2.46640086]
[1645963514101,114.584,91.289,91.182,2.46640086]
[1645963514303,4.384,91.289,91.182,2.46640086]
[1645963515203,114.584,91.289,91.182,2.46640086]
[1645963515804,16.3566,91.288,91.182,2.46640086]
[1645963516007,4.384,91.287,91.182,2.46640086]
[1645963516208,4.384,91.287,91.191,3.0342807]
[1645963516405,24.87972676,91.298,91.191,3.0342807]
[1645963517206,135.07972676,91.298,91.191,3.0342807]
[1645963517607,2.74678921,91.275,91.191,3.0342807]
[1645963517807,2.74678921,91.275,91.182,2.28808996]
[1645963518509,112.94678921,91.275,91.182,2.28808996]
[1645963518713,110.2,91.273,91.182,2.28808996]
[1645963519110,2.74678921,91.272,91.182,2.28808996]
[1645963520314,2.74678921,91.272,91.17,23.2692]
[1645963520315,1.82880977,91.268,91.171,2.80800524]
[1645963520513,4.385,91.267,91.153,23.1511]
[1645963520713,4.385,91.267,91.154,2.2822684]
[1645963520714,111.69785297,91.266,91.154,2.2822684]
[1645963520912,4.2,91.251,91.111,22.807]
[1645963521113,110.2,91.249,91.112,3.0759262]
[1645963521316,110.2,91.229,91.112,3.0759262]
[1645963521518,110.2,91.227,91.09,2.74678921]
[1645963521715,48.2811,91.226,91.09,2.74678921]
[1645963521915,48.2811,91.226,91.106,21.97644152]
[1645963522115,4.386,91.225,91.107,9.01284769]
[1645963522314,4.386,91.225,91.107,121.9596369]
[1645963522515,16.4672,91.22,91.108,2.82665922]
[1645963522714,16.4672,91.22,91.109,8.42922202]
[1645963522916,16.4672,91.22,91.109,11.17601123]
[1645963523115,16.4672,91.22,91.11,2.74678921]
[1645963523616,16.4672,91.22,91.12,16.4603]
[1645963523821,16.4672,91.22,91.121,23.4536]
[1645963524016,16.4672,91.22,91.122,2.39557474]
[1645963525226,16.4672,91.22,91.13,16.4596]
[1645963525428,39.85682567,91.228,91.131,112.84378418]
[1645963525629,39.85682567,91.228,91.132,2.62893749]
[1645963526027,39.85682567,91.228,91.133,2.74678921]
[1645963526228,39.85682567,91.228,91.135,110.2]
[1645963526429,39.85682567,91.228,91.151,2.79370191]
[1645963527548,39.85682567,91.228,91.16,16.454]
[1645963527747,39.85682567,91.228,91.161,2.92344055]
[1645963528750,39.85682567,91.228,91.161,113.12344055]
[1645963528950,4.386,91.289,91.162,2.81293125]
[1645963529152,48.89113393,91.306,91.163,116.2]
[1645963529351,30.53075398,91.294,91.164,2.83773831]
[1645963529552,23.9232,91.293,91.167,2.36880048]
[1645963529753,23.9232,91.293,91.163,8.74678921]
[1645963529754,23.9232,91.293,91.17,2.68969289]
[1645963529953,35.62733093,91.292,91.171,6.0]
[1645963530154,35.62733093,91.292,91.172,110.2]
[1645963530354,35.62733093,91.292,91.174,110.2]
[1645963530556,35.62733093,91.292,91.18,16.4507]
[1645963530754,35.62733093,91.292,91.181,49.90606168]
[1645963530954,35.62733093,91.292,91.182,2.5156718]
[1645963531159,35.62733093,91.292,91.182,112.94678921]
[1645963531357,35.62733093,91.292,91.183,8.85632352]
[1645963531658,35.62733093,91.292,91.185,3.11089085]
[1645963531857,35.62733093,91.292,91.191,110.2]
[1645963532058,35.62733093,91.292,91.193,110.2]
[1645963532256,35.62733093,91.292,91.195,110.2]
[1645963532458,35.62733093,91.292,91.197,110.2]
[1645963532755,35.62733093,91.292,91.2,2.2744223]
[1645963532956,35.62733093,91.292,91.202,110.2]
[1645963533158,35.62733093,91.292,91.204,110.2]
[1645963533358,35.62733093,91.292,91.206,110.2]
[1645963533559,35.62733093,91.292,91.22,16.44]
[1645963533758,35.62733093,91.292,91.221,8.48277381]
[1645963534261,35.62733093,91.292,91.221,6.0]
[1645963534458,35.62733093,91.292,91.21,54.7998]
[1645963534459,35.62733093,91.292,91.215,2.26557209]
[1645963534659,35.62733093,91.292,91.217,110.2]
[1645963534862,35.62733093,91.292,91.218,8.55362644]
[1645963535260,35.62733093,91.292,91.219,110.2]
[1645963535460,35.62733093,91.292,91.23,16.4414]
[1645963535663,35.62733093,91.292,91.231,2.66004631]
[1645963537262,35.62733093,91.292,91.212,2.35927425]
[1645963539466,35.62733093,91.292,91.22,16.4432]
[1645963539668,22.5446,91.309,91.221,2.2912695]
[1645963540065,16.4428,91.33,91.221,2.2912695]
[1645963540265,22.5446,91.329,91.213,2.78741696]
[1645963540666,35.87081044,91.328,91.213,2.78741696]
[1645963540865,67.8174773,91.328,91.214,6.0]
[1645963541067,29.19987765,91.327,91.214,6.0]
[1645963541570,35.87081044,91.328,91.231,110.2]
[1645963541765,35.87081044,91.328,91.233,110.2]
[1645963541968,35.87081044,91.328,91.236,2.2822338]
[1645963542167,35.87081044,91.328,91.239,2.57289034]
[1645963542370,35.87081044,91.328,91.241,110.2]
[1645963542568,35.87081044,91.328,91.244,2.69910804]
[1645963542767,35.87081044,91.328,91.247,2.65526884]
[1645963542967,35.87081044,91.328,91.248,6.0]
[1645963543368,35.87081044,91.328,91.243,6.0]
[1645963543572,35.87081044,91.328,91.26,16.4362]
[1645963543768,35.87081044,91.328,91.261,2.81560809]
[1645963551001,16.4386,91.35,91.261,2.81560809]
[1645963551202,23.3305,91.357,91.27,16.4344]
[1645963551401,23.3305,91.357,91.271,2.44976808]
[1645963551802,23.3305,91.357,91.246,2.99181862]
[1645963552003,23.3305,91.357,91.249,3.00844035]
[1645963552206,37.25375721,91.346,91.252,3.10426416]
[1645963552404,37.25375721,91.346,91.255,2.39955985]
[1645963552603,37.25375721,91.346,91.281,2.59202404]
[1645963553007,0.54983638,91.379,91.26,3.00425462]
[1645963553207,0.54983638,91.379,91.282,2.74678921]
[1645963553406,0.54983638,91.379,91.284,110.2]
[1645963553613,0.54983638,91.379,91.287,2.38967122]
[1645963553812,0.54983638,91.379,91.291,2.98533266]
[1645963554011,34.75260695,91.35,91.291,2.98533266]
[1645963554218,34.75260695,91.35,91.285,2.74678921]
[1645963554412,34.75260695,91.35,91.284,3.09556791]
[1645963555413,34.75260695,91.35,91.3,16.429]
[1645963555613,34.75260695,91.35,91.272,2.37216432]
[1645963556016,2.74678921,91.346,91.272,2.37216432]
[1645963558219,34.75260695,91.35,91.272,2.37216432]
[1645963561323,2.74678921,91.346,91.272,2.37216432]
[1645963561725,34.75260695,91.35,91.272,2.37216432]
[1645963561926,2.74678921,91.346,91.272,2.37216432]
[1645963562728,34.75260695,91.35,91.272,2.37216432]
[1645963564751,34.75260695,91.35,91.28,16.4324]
[1645963564927,34.75260695,91.35,91.281,2.28220389]
[1645963565330,34.75260695,91.35,91.28,2.74678921]
[1645963565528,34.75260695,91.35,91.273,2.74889152]
[1645963566127,2.74678921,91.346,91.273,2.74889152]
[1645963566928,34.75260695,91.35,91.273,2.74889152]
[1645963573838,34.75260695,91.35,91.28,16.4324]
[1645963574037,34.75260695,91.35,91.281,3.09960101]
[1645963576141,34.75260695,91.35,91.291,2.47683225]
[1645963576339,51.85558921,91.371,91.291,2.47683225]
[1645963576539,49.1088,91.371,91.291,2.47683225]
[1645963576740,49.1088,91.371,91.282,2.52705751]
[1645963576941,49.1088,91.371,91.284,110.2]
[1645963577140,49.1088,91.371,91.286,110.2]
[1645963577343,49.1088,91.371,91.288,110.2]
[1645963577543,44.10706476,91.364,91.301,2.81619429]
[1645963577745,44.10706476,91.364,91.302,6.0]
[1645963578345,44.10706476,91.364,91.293,6.0]
[1645963578545,0.54983638,91.379,91.293,6.0]
[1645963578546,33.19976926,91.35,91.293,6.0]
[1645963578746,33.19976926,91.35,91.29,10.38]
[1645963579444,33.19976926,91.35,91.31,16.427]
[1645963579645,0.54983638,91.379,91.311,2.73398554]
[1645963580866,37.06756416,91.369,91.311,2.73398554]
[1645963581165,32.16774776,91.355,91.292,4.378]
[1645963581365,32.16774776,91.355,91.292,2.31516008]
[1645963581569,32.16774776,91.355,91.284,2.373045]
[1645963590275,31.35505454,91.38,91.285,105.0]
[1645963590475,966.2801,91.432,91.365,2.74678921]
[1645963590677,966.2801,91.432,91.372,66.09]
[1645963590678,648.57907716,91.432,91.372,66.09]
[1645963590877,370.43907716,91.432,91.385,66.09]
[1645963591077,227.40387716,91.432,91.402,5.0]
[1645963591275,227.40387716,91.432,91.404,110.2]
[1645963591276,195.14888795,91.432,91.404,110.2]
[1645963591476,195.14888795,91.432,91.403,6.25]
[1645963591477,226.10074165,91.606,91.476,110.2]
[1645963591679,22.817444,91.528,91.478,110.2]
[1645963591879,22.817444,91.528,91.479,10.371]
[1645963592078,22.817444,91.528,91.48,110.2]
[1645963592278,22.817444,91.528,91.482,110.2]
[1645963592479,22.817444,91.528,91.481,6.0]
[1645963592480,22.817444,91.528,91.491,110.2]
[1645963592679,22.817444,91.528,91.492,9.00985509]
[1645963592880,22.817444,91.528,91.492,3.00985509]
[1645963593280,22.817444,91.528,91.476,2.37958998]
[1645963593581,33.67578524,91.527,91.476,2.37958998]
[1645963594983,22.817444,91.528,91.476,2.37958998]
[1645963595581,22.817444,91.528,91.477,2.74678921]
[1645963595981,42.2109717,91.527,91.476,2.37958998]
[1645963596185,42.2109717,91.527,91.481,3.00021226]
[1645963597785,22.817444,91.528,91.481,3.00021226]
[1645963599386,22.817444,91.528,91.49,16.3942]
[1645963599587,22.817444,91.528,91.491,2.91466839]
[1645963601294,22.817444,91.528,91.462,2.57902148]
[1645963601495,22.817444,91.528,91.465,2.42824401]
[1645963601690,22.817444,91.528,91.468,2.35344904]
[1645963601891,22.817444,91.528,91.471,2.28660639]
[1645963603906,22.817444,91.528,91.48,16.3952]
[1645963604103,22.817444,91.528,91.481,2.8324723]
[1645963604303,22.817444,91.528,91.481,5.57926151]
[1645963604503,22.817444,91.528,91.481,2.74678921]
[1645963604704,22.817444,91.528,91.482,2.74678921]
[1645963605509,22.817444,91.528,91.49,16.3917]
[1645963605709,22.817444,91.528,91.491,2.8437719]
[1645963607824,1.24851023,91.528,91.491,2.8437719]
[1645963608024,1.24851023,91.528,91.47,16.3967]
[1645963608025,1.24851023,91.528,91.471,3.02557271]
[1645963608721,1.24851023,91.528,91.48,16.3949]
[1645963608922,1.2966,91.527,91.48,16.3949]
[1645963609224,1.2966,91.527,91.481,5.76270237]
[1645963609421,1.2966,91.527,91.481,2.74678921]
[1645963610021,1.2966,91.527,91.49,16.3925]
[1645963610222,1.2966,91.527,91.491,8.61379445]
[1645963610431,1.023e-05,91.528,91.491,11.36058366]
[1645963610626,1.023e-05,91.528,91.5,54.6247]
[1645963610922,1.023e-05,91.528,91.501,8.36742115]
[1645963611121,1.023e-05,91.528,91.51,16.3846]
[1645963611322,1.023e-05,91.528,91.511,9.07301818]
[1645963611727,1.023e-05,91.528,91.511,11.81980739]
[1645963611922,1.023e-05,91.528,91.512,2.74678921]
[1645963613122,1.023e-05,91.528,91.511,3.07301818]
[1645963614132,1.023e-05,91.528,91.511,110.2]
[1645963614337,1.023e-05,91.528,91.512,2.8216099]
[1645963615131,1.023e-05,91.528,91.49,16.3924]
[1645963615334,1.023e-05,91.528,91.491,112.97831212]
[1645963615535,1.023e-05,91.528,91.463,49.63548921]
[1645963615737,1.023e-05,91.528,91.464,2.82783424]
[1645963616034,1.023e-05,91.528,91.465,6.0]
[1645963616237,1.023e-05,91.528,91.47,16.3961]
[1645963616434,1.023e-05,91.528,91.472,2.69148935]
[1645963616637,1.023e-05,91.528,91.471,116.2]
[1645963616638,1.023e-05,91.528,91.475,2.83054486]
[1645963617034,1.023e-05,91.528,91.465,9.81678921]
[1645963617234,1.023e-05,91.528,91.465,7.07]
[1645963617435,1.023e-05,91.528,91.466,110.2]
[1645963617634,1.023e-05,91.528,91.467,2.77662541]
[1645963618036,2.74678921,91.546,91.465,7.07]
[1645963618235,38.77159855,91.545,91.465,7.07]
[1645963618435,38.77159855,91.545,91.466,110.2]
[1645963618635,38.77159855,91.545,91.467,2.62765512]
[1645963620038,38.77159855,91.545,91.465,7.07]
[1645963621044,1.74348796,91.544,91.465,7.07]
[1645963621240,4.371,91.543,91.465,7.07]
[1645963621438,4.371,91.543,91.466,110.2]
[1645963621639,38.77159855,91.545,91.466,110.2]
[1645963621640,38.77159855,91.545,91.467,2.63948695]
[1645963622039,38.77159855,91.545,91.467,5.38627616]
[1645963622239,38.77159855,91.545,91.467,2.63948695]
[1645963622640,38.77159855,91.545,91.47,16.3969]
[1645963622841,38.77159855,91.545,91.471,2.27866518]
[1645963623241,38.77159855,91.545,91.465,7.07]
[1645963623442,1.68942579,91.544,91.465,7.07]
[1645963624646,38.77159855,91.545,91.466,110.2]
[1645963624869,38.77159855,91.545,91.467,2.76200904]
[1645963625772,38.77159855,91.545,91.471,2.93769574]
[1645963626373,1.71239561,91.544,91.465,7.07]
[1645963626672,1.71239561,91.544,91.442,2.28064686]
[1645963626872,4.371,91.543,91.433,2.64353266]
[1645963627078,4.371,91.543,91.436,2.35013648]
[1645963627475,16.4036,91.54,91.45,16.4016]
[1645963627872,16.4036,91.54,91.451,2.81364384]
[1645963628074,16.4036,91.54,91.452,2.85259758]
[1645963629274,38.77159855,91.545,91.452,2.85259758]
[1645963629475,38.77159855,91.545,91.462,2.97927191]
[1645963629875,38.77159855,91.545,91.463,2.74678921]
[1645963630075,2.40028253,91.555,91.463,2.74678921]
[1645963630276,2.40028253,91.555,91.466,2.34840476]
[1645963630478,2.40028253,91.555,91.469,2.55668694]
[1645963630677,2.40028253,91.555,91.491,110.2]
[1645963630881,2.40028253,91.555,91.494,2.68175578]
[1645963631378,2.40028253,91.555,91.496,110.2]
[1645963631576,2.40028253,91.555,91.495,8.74678921]
[1645963631577,2.40028253,91.555,91.498,110.2]
[1645963631776,2.40028253,91.555,91.511,110.2]
[1645963631977,2.40028253,91.555,91.512,2.52671288]
[1645963632379,45.5682044,91.554,91.512,2.52671288]
[1645963632781,45.5682044,91.554,91.499,2.74678921]
[1645963633480,45.5682044,91.554,91.501,110.2]
[1645963633680,45.5682044,91.554,91.502,2.92470159]
[1645963634485,45.5682044,91.554,91.511,113.07846884]
[1645963634687,45.5682044,91.554,91.511,110.2]
[1645963634886,45.5682044,91.554,91.512,2.9871539]
[1645963635585,2.40028253,91.555,91.512,2.9871539]
[1645963635985,1.90028253,91.555,91.512,2.9871539]
[1645963636186,1.90028253,91.555,91.511,110.2]
[1645963636187,1.90028253,91.555,91.521,110.2]
[1645963636485,1.90028253,91.555,91.522,2.58264485]
[1645963639087,1.90028253,91.555,91.531,110.2]
[1645963639485,1.90028253,91.555,91.532,2.70290464]
[1645963640287,1.90028253,91.555,91.54,16.3844]
[1645963640491,1.90028253,91.555,91.541,110.2]
[1645963640687,1.90028253,91.555,91.542,2.38804294]
[1645963646994,1.90028253,91.555,91.542,1.88804294]
[1645963648196,1.90028253,91.555,91.517,110.2]
[1645963648396,1.90028253,91.555,91.513,4.369]
[1645963650297,1.90028253,91.555,91.501,110.2]
[1645963651299,1.90028253,91.555,91.502,2.72006746]
[1645963651500,1.90028253,91.555,91.502,5.46685667]
[1645963652504,1.90028253,91.555,91.511,110.2]
[1645963652903,1.40028253,91.555,91.511,110.2]
[1645963653502,1.40028253,91.555,91.521,110.2]
[1645963656805,1.40028253,91.555,91.522,3.11916904]
[1645963657508,1.40028253,91.555,91.532,2.34280946]
[1645963660834,1.40028253,91.555,91.53,16.3875]
[1645963662934,1.40028253,91.555,91.532,2.52428892]
[1645963663532,1.40028253,91.555,91.531,110.2]
[1645963663732,1.40028253,91.555,91.532,2.40517904]
[1645963664734,1.40028253,91.555,91.532,5.15196825]
[1645963666336,1.40028253,91.555,91.541,110.2]
[1645963666538,1.40028253,91.555,91.542,2.71084862]
[1645963666737,1.40028253,91.555,91.542,5.45763783]
[1645963666936,1.40028253,91.555,91.543,2.74678921]
[1645963669338,1.40028253,91.555,91.542,2.71084862]
[1645963669339,1.40028253,91.555,91.54,16.3827]
[1645963669540,1.40028253,91.555,91.52,16.3885]
[1645963670443,1.40028253,91.555,91.512,110.2]
[1645963670641,1.40028253,91.555,91.513,2.83441416]
[1645963670841,1.40028253,91.555,91.53,16.3873]
[1645963671041,1.40028253,91.555,91.531,110.2]
[1645963671244,1.40028253,91.555,91.532,2.31905329]
[1645963671644,1.40028253,91.555,91.532,5.0658425]
[1645963673142,60.69413772,91.669,91.551,110.2]
[1645963673344,59.69413772,91.669,91.557,1.40028253]
[1645963673642,59.69413772,91.669,91.552,6.25]
[1645963673643,59.69413772,91.669,91.56,2.99497172]
[1645963673844,59.69413772,91.669,91.562,110.2]
[1645963674043,41.44570691,91.668,91.564,110.2]
[1645963674342,41.44570691,91.668,91.567,3.05797514]
[1645963674543,41.44570691,91.668,91.591,110.2]
[1645963674743,41.44570691,91.668,91.594,2.66088508]
[1645963675344,41.44570691,91.668,91.593,110.2]
[1645963675744,41.44570691,91.668,91.591,2.74678921]
[1645963675946,41.44570691,91.668,91.594,2.74678921]
[1645963676449,41.44570691,91.668,91.61,16.3722]
[1645963677248,41.44570691,91.668,91.584,23.8434]
[1645963677448,41.44570691,91.668,91.585,2.60319115]
[1645963677649,1.73510043,91.667,91.59,16.3754]
[1645963677848,4.365,91.666,91.59,16.3754]
[1645963678449,4.365,91.666,91.59,15.8754]
[1645963679851,4.365,91.666,91.591,110.2]
[1645963680052,59.69413772,91.669,91.601,110.2]
[1645963680251,49.85233772,91.669,91.602,2.56404474]
[1645963680450,49.85233772,91.669,91.604,110.2]
[1645963680651,49.85233772,91.669,91.606,110.2]
[1645963680851,49.85233772,91.669,91.608,110.2]
[1645963681056,49.85233772,91.669,91.607,6.0]
[1645963681057,49.85233772,91.669,91.61,110.2]
[1645963681254,49.85233772,91.669,91.612,110.2]
[1645963681552,49.85233772,91.669,91.621,110.2]
[1645963681756,49.85233772,91.669,91.622,2.44316376]
[1645963682152,49.85233772,91.669,91.624,2.93477844]
[1645963682653,49.85233772,91.669,91.626,110.2]
[1645963682953,49.85233772,91.669,91.627,2.36139158]
[1645963683354,49.85233772,91.669,91.626,128.02556153]
[1645963683556,49.85233772,91.669,91.631,110.2]
[1645963683957,105.0,91.668,91.613,2.74678921]
[1645963684156,105.0,91.668,91.589,16.17889486]
[1645963684157,105.0,91.668,91.584,18.59416088]
[1645963684358,109.365,91.668,91.537,2.83523928]
[1645963684557,1.58418172,91.666,91.537,2.83523928]
[1645963684855,39.20348574,91.664,91.537,2.83523928]
[1645963685059,16.3819,91.66,91.57,16.3792]
[1645963685357,6.07196525,91.659,91.551,110.2]
[1645963685664,8.81875446,91.659,91.551,110.2]
[1645963685857,8.81875446,91.659,91.538,3.07188909]
[1645963686056,2.74678921,91.658,91.538,3.07188909]
[1645963686256,4.366,91.657,91.538,3.07188909]
[1645963686459,16.3835,91.65,91.551,110.2]
[1645963686658,37.03967699,91.648,91.55,16.3826]
[1645963686860,4.366,91.647,91.55,16.3826]
[1645963687057,8.60824189,91.647,91.55,16.3826]
[1645963687258,1.51104386,91.645,91.487,2.90627314]
[1645963687458,4.368,91.644,91.487,2.90627314]
[1645963687658,110.2,91.643,91.487,2.90627314]
[1645963687858,4.368,91.642,91.487,2.90627314]
[1645963688058,110.2,91.641,91.487,110.2]
[1645963688260,110.2,91.639,91.477,3.08708959]
[1645963688460,110.2,91.637,91.5,16.3918]
[1645963688660,110.2,91.635,91.5,16.3918]
[1645963688860,110.2,91.632,91.5,16.3918]
[1645963689061,1.4114135,91.631,91.5,15.8918]
[1645963689260,116.01449035,91.63,91.5,15.8918]
[1645963689462,1.84960018,91.629,91.5,15.8918]
[1645963689659,4.368,91.628,91.5,15.8918]
[1645963689860,110.2,91.627,91.5,15.8918]
[1645963690062,110.2,91.625,91.5,15.8918]
[1645963690264,110.2,91.623,91.5,15.8918]
[1645963690565,110.2,91.619,91.5,15.8918]
[1645963690763,110.2,91.616,91.5,15.8918]
[1645963690962,110.2,91.616,91.488,2.74678921]
[1645963690963,111.56690152,91.614,91.484,112.2]
[1645963691162,1.63693291,91.613,91.484,112.2]
[1645963691364,4.369,91.612,91.484,112.2]
[1645963691565,4.369,91.612,91.485,3.06295008]
[1645963691763,4.38372212,91.613,91.485,5.80973929]
[1645963691764,1.63693291,91.613,91.485,5.80973929]
[1645963691964,1.63693291,91.613,91.52,16.3884]
[1645963692284,4.368,91.612,91.487,110.2]
[1645963692465,24.6138,91.615,91.52,2.74678921]
[1645963692662,1.58738877,91.614,91.49,3.01873784]
[1645963692864,1.58738877,91.614,91.512,110.2]
[1645963693064,1.58738877,91.614,91.513,2.61338341]
[1645963693264,1.58738877,91.614,91.513,5.36017262]
[1645963693463,4.368,91.613,91.513,5.36017262]
[1645963693664,4.368,91.613,91.53,16.3864]
[1645963693865,4.368,91.613,91.503,2.52293509]
[1645963694064,4.368,91.613,91.487,47.6066]
[1645963694065,4.368,91.613,91.488,5.52280396]
[1645963694364,6.03853713,91.613,91.488,5.52280396]
[1645963694566,6.03853713,91.613,91.489,13.47838022]
[1645963694863,6.03853713,91.613,91.49,110.2]
[1645963695065,1.67053713,91.613,91.501,110.2]
[1645963695265,4.368,91.612,91.5,16.3922]
[1645963696966,1.67053713,91.613,91.501,110.2]
[1645963697169,1.67053713,91.613,91.502,2.52311115]
[1645963697372,1.67053713,91.613,91.501,110.2]
[1645963697665,1.67053713,91.613,91.51,16.3904]
[1645963697866,1.67053713,91.613,91.511,2.36020614]
[1645963698066,1.67053713,91.613,91.502,112.94678921]
[1645963698267,1.67053713,91.613,91.503,2.2846924]
[1645963698467,1.67053713,91.613,91.512,2.74678921]
[1645963698866,1.67053713,91.613,91.53,16.3867]
[1645963699069,1.67053713,91.613,91.506,2.27995646]
[1645963700089,4.368,91.612,91.506,2.27995646]
[1645963700490,4.368,91.612,91.511,110.2]
[1645963700690,4.368,91.612,91.512,2.69757446]
[1645963700890,1.67053713,91.613,91.512,2.69757446]
[1645963701889,1.67053713,91.613,91.502,110.2]
[1645963701890,1.67053713,91.613,91.503,3.02899452]
[1645963702391,1.67053713,91.613,91.511,2.36436634]
[1645963702590,4.368,91.612,91.511,112.56436634]
[1645963702790,4.368,91.612,91.511,2.36436634]
[1645963704591,4.368,91.612,91.511,112.56436634]
[1645963704792,4.368,91.612,91.512,2.45307551]
[1645963705294,4.368,91.612,91.52,16.3888]
[1645963705491,1.67053713,91.613,91.521,2.32348574]
[1645963705894,4.368,91.612,91.521,2.32348574]
[1645963706793,4.368,91.612,91.521,110.2]
[1645963706993,4.368,91.612,91.522,2.34961719]
[1645963708993,4.368,91.612,91.503,2.60099115]
[1645963709193,1.67053713,91.613,91.504,4.368]
[1645963709393,4.368,91.612,91.503,2.60099115]
[1645963711796,110.2,91.611,91.503,2.60099115]
[1645963711994,110.2,91.609,91.502,2.76621586]
[1645963712194,110.2,91.607,91.502,3.0890371]
[1645963712395,6.09865258,91.606,91.502,3.0890371]
[1645963713197,110.2,91.605,91.502,3.0890371]
[1645963713396,110.2,91.605,91.481,46.926]
[1645963713397,110.2,91.603,91.485,2.98242126]
[1645963713597,110.2,91.601,91.485,2.98242126]
[1645963713796,110.2,91.589,91.485,2.98242126]
[1645963713997,110.2,91.585,91.485,2.98242126]
[1645963714198,6.10173768,91.584,91.485,2.98242126]
[1645963714600,1.73273768,91.584,91.485,2.98242126]
[1645963714795,4.369,91.583,91.485,2.98242126]
[1645963715398,4.369,91.583,91.481,46.926]
[1645963715601,1.65571888,91.578,91.481,46.926]
[1645963715897,1.65571888,91.578,91.48,16.3959]
[1645963715898,4.37,91.577,91.48,16.3959]
[1645963716098,4.37,91.577,91.485,2.32310634]
[1645963717902,110.2,91.577,91.469,4.37]
[1645963718104,110.2,91.575,91.469,4.37]
[1645963718302,110.2,91.571,91.469,4.37]
[1645963718500,4.37,91.57,91.469,4.37]
[1645963718706,110.2,91.569,91.469,4.37]
[1645963718902,110.2,91.567,91.469,4.37]
[1645963719103,36.36809345,91.572,91.469,4.37]
[1645963719104,110.2,91.565,91.469,4.37]
[1645963719304,54.6733,91.57,91.469,4.37]
[1645963719305,110.2,91.563,91.469,4.37]
[1645963719504,1.85547721,91.562,91.469,4.37]
[1645963719706,4.37,91.561,91.469,4.37]
[1645963720306,16.4042,91.55,91.469,4.37]
[1645963720504,4.37,91.561,91.469,4.37]
[1645963720906,1.85547721,91.562,91.469,4.37]
[1645963721507,1.85547721,91.562,91.47,16.398]
[1645963721707,1.85547721,91.562,91.471,3.0414985]
[1645963722308,4.37,91.561,91.471,3.0414985]
[1645963722510,4.37,91.563,91.471,3.0414985]
[1645963722907,5.77041833,91.563,91.47,16.398]